[Event "Asian Amateur-ch Open 2022"]
[Site "Muscat"]
[Date "2022.10.05"]
[Round "9.19"]
[White "Hamdan Edrees, Alhamed"]
[Black "Hisoriev, Shorahmat"]
[Result "1/2-1/2"]
[ECO "B23"]
[WhiteElo "1467"]
[BlackElo "1681"]
[Annotator "NA RC COMBH"]
[PlyCount "118"]
[EventDate "2022.09.29"]
[EventType "swiss"]
[EventCountry "OMN"]
[SourceTitle "playchess.com"]
[Source "ChessBase"]
[SourceQuality "1"]
[TimeControl "5400+30"]

1. e4 {[%emt 0:00:02]} c5 {[%emt 0:00:40]} 2. Nc3 {[%emt 0:00:26]} Nc6 {[%emt 0:00:30]} 3. f4 {[%emt 0:00:07]} e5 {[%emt 0:02:39]} 4. fxe5 {[%emt 0:00:15]} Nxe5 {[%emt 0:00:23]} 5. d4 {[%emt 0:00:08]} cxd4 {[%emt 0:03:15]} 6. Qxd4 {[%emt 0:00:20]} Nc6 {[%emt 0:01:56]} 7. Qd1 {[%emt 0:00:22]} Bb4 {[%emt 0:00:43]} 8. Bd2 {[%emt 0:00:08]} Bxc3 {[%emt 0:02:48]} 9. Bxc3 {[%emt 0:00:15]} Qh4+ {[%emt 0:00:04]} 10. g3 {[%emt 0:00:17]} Qxe4+ {[%emt 0:00:18]} 11. Qe2 {[%emt 0:00:04]} Qxe2+ {[%emt 0:00:43]} 12. Nxe2 {[%emt 0:00:06]} f6 {[%emt 0:00:18]} 13. Nf4 {[%emt 0:00:13]} Nge7 {[%emt 0:00:23]} 14. Bc4 {[%emt 0:00:16]} Ne5 {[%emt 0:00:43]} 15. Bb3 {[%emt 0:00:05]} Nf7 {[%emt 0:01:53]} 16. Bb4 {[%emt 0:00:23]} Nc6 {[%emt 0:02:24]} 17. Bc5 {[%emt 0:02:02]} b6 {[%emt 0:00:29]} 18. Ba3 {[%emt 0:00:06]} Bb7 {[%emt 0:02:39]} 19. O-O-O {[%emt 0:00:11]} Nce5 {[%emt 0:00:53]} 20. Rhe1 {[%emt 0:00:23]} O-O-O {[%emt 0:00:28]} 21. Nd5 {[%emt 0:00:47]} Rhe8 {[%emt 0:01:07]} 22. Ne7+ {[%emt 0:00:27]} Kb8 {[%emt 0:00:52]} 23. Nf5 {[%emt 0:00:14]} g6 {[%emt 0:01:35]} 24. Nd6 {[%emt 0:05:01]} Nxd6 {[%emt 0:00:24]} 25. Bxd6+ {[%emt 0:00:09]} Kc8 {[%emt 0:01:01]} 26. Rf1 {[%emt 0:00:59]} f5 {[%emt 0:00:43]} 27. Rf4 {[%emt 0:00:41]} Bc6 {[%emt 0:00:27]} 28. Rh4 {[%emt 0:02:56]} h5 {[%emt 0:01:51]} 29. Bxe5 {[%emt 0:00:34]} Rxe5 {[%emt 0:00:03]} 30. Rd6 {[%emt 0:00:02]} a5 {[%emt 0:01:59]} 31. Rxg6 {[%emt 0:00:20]} Kb7 {[%emt 0:00:38]} 32. Bc4 {[%emt 0:00:12]} Be4 {[%emt 0:00:45]} 33. Rd6 {[%emt 0:00:56]} Kc7 {[%emt 0:02:57]} 34. Rd4 {[%emt 0:00:29]} d5 {[%emt 0:00:25]} 35. Bb5 {[%emt 0:00:34]} Kd6 {[%emt 0:00:24]} 36. c3 {[%emt 0:00:13]} Kc5 {[%emt 0:04:59]} 37. a4 {[%emt 0:00:26]} Rh8 {[%emt 0:02:18]} 38. Kd2 {[%emt 0:00:34]} Re7 {[%emt 0:00:28]} 39. Be2 {[%emt 0:00:20]} Kd6 {[%emt 0:00:50]} 40. Bd1 {[%emt 0:05:19]} Ke5 {[%emt 0:00:18]} 41. Ke3 {[%emt 0:00:39]} Kf6 {[%emt 0:01:22]} 42. Kf4 {[%emt 0:00:13]} Bg2 {[%emt 0:00:40]} 43. Rxh5 {[%emt 0:03:01]} Rxh5 {[%emt 0:00:26]} 44. Bxh5 {[%emt 0:00:04]} Rh7 {[%emt 0:02:45]} 45. g4 {[%emt 0:00:13]} fxg4 {[%emt 0:00:46]} 46. Bxg4 {[%emt 0:00:10]} Be4 {[%emt 0:00:43]} 47. Rd2 {[%emt 0:00:23]} Rh4 {[%emt 0:02:54]} 48. h3 {[%emt 0:00:19]} Rh8 {[%emt 0:02:57]} 49. c4 {[%emt 0:00:20]} Rd8 {[%emt 0:00:02]} 50. cxd5 {[%emt 0:00:18]} Rxd5 {[%emt 0:00:48]} 51. Rxd5 {[%emt 0:00:04]} Bxd5 {[%emt 0:00:00]} 52. Bd1 {[%emt 0:00:16]} Bc6 {[%emt 0:00:44]} 53. h4 {[%emt 0:00:41]} b5 {[%emt 0:01:07]} 54. axb5 {[%emt 0:00:28]} Bxb5 {[%emt 0:00:01]} 55. Ke4 {[%emt 0:00:31]} Ke6 {[%emt 0:00:41]} 56. h5 {[%emt 0:00:08]} Be8 {[%emt 0:00:06]} 57. Kf4 {[%emt 0:00:52]} Kf6 {[%emt 0:00:06]} 58. Kg4 {[%emt 0:01:18]} Bd7+ {[%emt 0:05:01]} 59. Kf4 {[%emt 0:00:54]} Be8 {[%emt 0:01:30]} 1/2-1/2

[Event "Asian Amateur-ch Open 2022"]
[Site "Muscat"]
[Date "2022.10.05"]
[Round "9.21"]
[White "Muhammed, Zahid"]
[Black "Al Yahmadi, Anas"]
[Result "1/2-1/2"]
[ECO "A04"]
[WhiteElo "1677"]
[BlackElo "1365"]
[Annotator "NA RC COMBH"]
[PlyCount "121"]
[EventDate "2022.09.29"]
[EventType "swiss"]
[EventCountry "OMN"]
[SourceTitle "playchess.com"]
[Source "ChessBase"]
[SourceQuality "1"]
[TimeControl "5400+30"]

1. e4 {[%emt 0:00:00]} c5 {[%emt 0:12:08]} 2. Nf3 {[%emt 0:00:37]} Nc6 {[%emt 0:00:48]} 3. d3 {[%emt 0:00:31]} d6 {[%emt 0:01:38]} 4. g3 {[%emt 0:00:13]} g6 {[%emt 0:00:22]} 5. Bg2 {[%emt 0:00:31]} Bg7 {[%emt 0:01:14]} 6. c3 {[%emt 0:00:08]} Nf6 {[%emt 0:01:54]} 7. O-O {[%emt 0:00:30]} Bg4 {[%emt 0:02:33]} 8. Nbd2 {[%emt 0:01:11]} Qd7 {[%emt 0:01:09]} 9. Qa4 {[%emt 0:03:44]} Rb8 {[%emt 0:06:44]} 10. Re1 {[%emt 0:03:12]} O-O {[%emt 0:00:49]} 11. d4 {[%emt 0:01:32]} Nxd4 {[%emt 0:05:55]} 12. Qxd7 {[%emt 0:01:56]} Nxf3+ {[%emt 0:00:06]} 13. Nxf3 {[%emt 0:01:01]} Nxd7 {[%emt 0:02:15]} 14. Bf4 {[%emt 0:02:32]} a5 {[%emt 0:01:30]} 15. h3 {[%emt 0:02:16]} Bxf3 {[%emt 0:00:33]} 16. Bxf3 {[%emt 0:00:07]} b5 {[%emt 0:02:16]} 17. Rad1 {[%emt 0:02:01]} b4 {[%emt 0:01:51]} 18. Bd2 {[%emt 0:03:49]} bxc3 {[%emt 0:01:35]} 19. Bxc3 {[%emt 0:00:13]} Bxc3 {[%emt 0:54:40]} 20. bxc3 {[%emt 1:14:26]} Rb2 {[%emt 0:00:00]} 21. Re2 {[%emt 0:00:00]} Rfb8 {[%emt 0:00:00]} 22. Rdd2 {[%emt 0:00:00]} Rb1+ {[%emt 0:00:00]} 23. Kh2 {[%emt 0:00:00]} Ne5 {[%emt 0:00:00]} 24. Kg2 {[%emt 0:00:00]} a4 {[%emt 0:00:00]} 25. Rc2 {[%emt 0:00:00]} a3 {[%emt 0:00:00]} 26. Red2 {[%emt 0:00:00]} Nc4 {[%emt 0:00:00]} 27. Rd1 {[%emt 0:00:00]} R1b2 {[%emt 0:00:00]} 28. Rdc1 {[%emt 0:00:00]} Ne5 {[%emt 0:00:00]} 29. Be2 {[%emt 0:00:00]} c4 {[%emt 0:00:00]} 30. f4 {[%emt 0:00:00]} Nd3 {[%emt 0:00:00]} 31. Bxd3 {[%emt 0:00:00]} cxd3 {[%emt 0:00:00]} 32. Rf2 {[%emt 0:00:00]} Rxf2+ {[%emt 0:00:00]} 33. Kxf2 {[%emt 0:00:00]} Rb2+ {[%emt 0:00:00]} 34. Ke3 {[%emt 0:00:00]} Rxa2 {[%emt 0:00:00]} 35. Kxd3 {[%emt 0:00:00]} Rh2 {[%emt 0:00:00]} 36. Ra1 {[%emt 0:00:00]} Rxh3 {[%emt 0:00:00]} 37. Rxa3 {[%emt 0:00:00]} Rxg3+ {[%emt 0:00:00]} 38. Ke2 {[%emt 0:00:00]} f6 {[%emt 0:00:00]} 39. Kf2 {[%emt 0:00:00]} Rd3 {[%emt 0:00:00]} 40. Ra7 {[%emt 0:00:00]} e5 {[%emt 0:00:00]} 41. fxe5 {[%emt 0:00:00]} fxe5 {[%emt 0:00:00]} 42. Rd7 {[%emt 0:00:00]} Rxc3 {[%emt 0:00:00]} 43. Rxd6 {[%emt 0:00:00]} Rc7 {[%emt 0:00:00]} 44. Re6 {[%emt 0:00:00]} Rc5 {[%emt 0:00:00]} 45. Re7 {[%emt 0:00:00]} h5 {[%emt 0:00:00]} 46. Kg3 {[%emt 0:00:00]} Kf8 {[%emt 0:00:00]} 47. Rh7 {[%emt 0:00:00]} Rc6 {[%emt 0:00:00]} 48. Kh4 {[%emt 0:00:00]} Rf6 {[%emt 0:00:00]} 49. Kg5 {[%emt 0:00:00]} Rf7 {[%emt 0:00:00]} 50. Rh8+ {[%emt 0:00:00]} Kg7 {[%emt 0:00:00]} 51. Re8 {[%emt 0:00:00]} h4 {[%emt 0:00:00]} 52. Kxh4 {[%emt 0:00:00]} Rf4+ {[%emt 0:00:00]} 53. Kg5 {[%emt 0:00:00]} Rxe4 {[%emt 0:00:00]} 54. Re6 {[%emt 0:00:00]} Kf7 {[%emt 0:00:00]} 55. Rf6+ {[%emt 0:00:00]} Ke7 {[%emt 0:00:00]} 56. Rxg6 {[%emt 0:00:00]} Rf4 {[%emt 0:00:00]} 57. Ra6 {[%emt 0:00:00]} Rf1 {[%emt 0:00:00]} 58. Kg4 {[%emt 0:00:00]} e4 {[%emt 0:00:00]} 59. Ra4 {[%emt 0:00:00]} Kf6 {[%emt 0:00:00]} 60. Rxe4 {[%emt 0:00:00]} Rg1+ {[%emt 0:00:07]} 61. Kf4 {[%emt 0:20:30]} 1/2-1/2

[Event "Asian Amateur-ch Open 2022"]
[Site "Muscat"]
[Date "2022.10.05"]
[Round "9.22"]
[White "Muhammad Shahzeb"]
[Black "Shaurya Dinesh Sawlani"]
[Result "1/2-1/2"]
[ECO "B23"]
[WhiteElo "1992"]
[BlackElo "1448"]
[Annotator "TA"]
[PlyCount "116"]
[EventDate "2022.09.29"]
[EventType "swiss"]
[EventCountry "OMN"]
[SourceTitle "playchess.com"]
[Source "ChessBase"]
[SourceQuality "1"]
[TimeControl "5400+30"]

{[%evp 12,116,-34,-30,-35,-28,-26,-65,-61,-67,-52,-62,-13,-17,-28,-27,-24,-30,-45,-18,12,0,0,-19,18,1,19,25,18,20,18,-44,-44,-62,-67,-62,-74,-45,-42,-50,-31,-50,-39,-36,-18,-51,-32,-37,-23,-41,0,-93,-79,-68,-29,-113,-116,-138,0,-90,0,0,0,0,23,0,0,0,0,0,22,0,0,0,0,-43,-25,-33,-41,-175,0,0,0,0,0,-632,-752,-647,-959,-960,-824,-967,-967,-937,-881,-787,-752,-852,-780,-736,0,0,0,-545,0,0,0]} 1. e4 {[%emt 0:00:12]} c5 {[%emt 0:00:11]} 2. Nc3 {[%emt 0:00:03]} e6 {[%emt 0:00:04]} 3. f4 {[%emt 0:00:14]} d5 {[%emt 1:31:45]} 4. Nf3 {[%emt 0:00:57]} Nc6 {[%emt 0:00:00]} 5. Bb5 {[%emt 0:00:07]} Nge7 {[%emt 0:00:00]} 6. Qe2 {[%emt 0:06:58]} d4 {[%emt 0:01:30]} 7. Nd1 {[%emt 0:02:01]} a6 {[%emt 0:00:00] B23: Closed Sicilian: Lines without g3.} 8. Bxc6+ {[%emt 1:23:58]} Nxc6 {[%emt 0:00:00]} 9. a4 {[%emt 0:00:00]} Be7 {[%emt 0:00:00] Black is slightly better.} 10. O-O {[%emt 0:00:00]} O-O {[%emt 0:00:00]} 11. d3 {[%emt 0:00:00] [#]} Rb8 $146 {[%emt 0:00:00]} (11... f6 $15) ({Predecessor:} 11... f5 12. Nf2 Qc7 13. Bd2 Bd7 14. Kh1 Rae8 15. e5 Nd8 16. a5 Bc6 17. b3 Kh8 {0-1 (50) Lupu,O (2196)-Banzea,A (2013) Targu Mures 2014}) 12. Ne5 {[%emt 0:00:00]} Nxe5 {[%emt 0:00:00]} 13. fxe5 {[%emt 0:00:00]} Bg5 {[%emt 0:00:00]} 14. Qh5 {[%emt 0:00:00]} Bxc1 {[%emt 0:00:00]} 15. Rxc1 {[%emt 0:00:00]} Qe8 {[%emt 0:00:00]} 16. Nf2 {[%emt 0:00:00]} f5 {[%emt 0:00:00]} 17. Qh4 {[%emt 0:00:00]} Qd8 {[%emt 0:00:00]} 18. Qg3 {[%emt 0:00:00]} f4 {[%emt 0:00:00]} 19. Qg4 {[%emt 0:00:00]} Qc7 {[%emt 0:00:00]} 20. Qh5 {[%emt 0:00:00]} Bd7 {[%emt 0:00:00]} 21. Ng4 {[%emt 0:00:00]} (21. Nh3 $11) 21... Bxa4 $15 {[%emt 0:00:00]} 22. Rf3 {[%emt 0:00:00]} Be8 {[%emt 0:00:00]} 23. Qg5 {[%emt 0:00:00]} Qd8 {[%emt 0:00:00]} 24. Nh6+ {[%emt 0:00:00]} Kh8 {[%emt 0:00:00]} 25. Rxf4 {[%emt 0:00:00][%cal Rf4f8]} Bg6 {[%emt 0:00:00]} (25... Qxg5 $2 26. Rxf8#) 26. Rxf8+ {[%emt 0:00:00]} Qxf8 {[%emt 0:00:00]} 27. Ng4 {[%emt 0:00:00]} Qd8 {[%emt 0:00:05]} 28. Qd2 {[%emt 0:00:00]} Qe7 {[%emt 0:00:47]} 29. Nf2 {[%emt 0:00:00]} Rf8 {[%emt 0:01:27]} (29... Qc7 {is more complex.} 30. Qg5 Rf8 31. c3 Qf7) 30. Nh3 {[%emt 0:00:00]} (30. Qa5 {keeps more tension.} Qg5 31. Rf1 Qxe5 32. Qb6) 30... Kg8 {[%emt 0:00:46]} (30... Qc7 $5 {[%cal Rc7e5]}) 31. b3 {[%emt 0:00:00]} (31. Qa5 $11) 31... Qc7 $17 {[%emt 0:01:02]} 32. Qg5 {[%emt 0:00:00]} b5 {[%emt 0:00:50]} 33. Nf4 {[%emt 0:12:30]} (33. Ra1 $11) 33... Bf7 $1 {[%emt 0:00:33]} 34. Ne2 {[%emt 0:00:00]} Bg6 {[%emt 0:02:18]} (34... a5 $17 {Threatens to win with ...h6.} 35. Ra1 h6) 35. h4 {[%emt 0:00:00]} (35. Nf4 $11 {remains equal.} Bf7 36. Nh5 Bxh5 37. Qxh5) 35... Qf7 {[%emt 0:00:14]} (35... Be8 $17) 36. Ng3 $1 $11 {[%emt 0:00:00]} Qf2+ {[%emt 0:02:26]} 37. Kh2 {[%emt 0:00:00] aiming for Rf1.} Qe3 {[%emt 0:01:45]} 38. Ra1 {[%emt 0:00:00]} Qxg5 {[%emt 0:00:34]} 39. hxg5 {[%emt 0:00:00][%mdl 4096] Endgame KRB-KRN} Ra8 {[%emt 0:00:05]} 40. Ra5 {[%emt 0:00:00]} Kf7 {[%emt 0:00:27]} 41. Kh3 {[%emt 0:00:00]} (41. b4 $5) 41... Ke7 {[%emt 0:00:06]} 42. Ne2 {[%emt 0:00:00]} Kd7 {[%emt 0:00:23]} 43. b4 {[%emt 0:00:00]} Kc6 {[%emt 0:01:18]} 44. bxc5 {[%emt 0:00:00]} Kxc5 {[%emt 0:00:04]} 45. Nc1 {[%emt 0:00:00]} (45. Kg3 $15) 45... Kb6 $2 {[%emt 0:01:47]} ({Black should play} 45... Kb4 $19 46. Ra2 a5) 46. Nb3 {[%emt 0:00:00]} Rd8 {[%emt 0:00:40][%cal Og6e4] And now ...Bxe4! would win.} 47. Kg4 {[%emt 0:00:00]} Rd7 {[%emt 0:01:10]} 48. Rxa6+ $2 {[%emt 0:00:00][%mdl 8192]} Kxa6 $19 {[%emt 0:00:50]} 49. Nc5+ {[%emt 0:00:00] [#]} Ka5 $1 {[%emt 0:00:31]} 50. Nxd7 {[%emt 0:00:00] KB-KN} Kb4 {[%emt 0:00:02]} 51. Kf3 {[%emt 0:00:00]} Kc3 {[%emt 0:00:55]} 52. Nc5 {[%emt 0:00:43]} Kxc2 {[%emt 0:00:08]} 53. Nxe6 {[%emt 0:02:24]} Kxd3 {[%emt 0:01:42]} 54. Nf4+ {[%emt 0:02:31] [#]} Kc2 $1 {[%emt 0:00:08] Strongly threatening ...d3.} 55. Ne2 {[%emt 0:01:35]} Kd3 {[%emt 0:00:24]} 56. Nf4+ {[%emt 0:00:50]} Kc2 {[%emt 0:00:09] White must now prevent ...d3.} 57. Ne2 $1 {[%emt 0:01:29]} ({But not} 57. Nxg6 $2 d3 58. Nf4 d2 $19) 57... Kd3 {[%emt 0:01:02]} (57... Bh5+ $19 58. g4 Be8 59. Nxd4+ Kd3) 58. Nf4+ $11 {[%emt 0:01:18]} Kc2 {[%emt 0:00:04] Weighted Error Value: White=0.34/Black=0.29 (precise)} 1/2-1/2

[Event "Asian Amateur-ch Open 2022"]
[Site "Muscat"]
[Date "2022.10.05"]
[Round "9.26"]
[White "Al Mamari Mohammed Salim"]
[Black "Said Ahmed Ali Jidal Fadhil"]
[Result "1-0"]
[ECO "D02"]
[WhiteElo "1685"]
[BlackElo "1755"]
[Annotator "NA RC COMBH"]
[PlyCount "129"]
[EventDate "2022.09.29"]
[EventType "swiss"]
[EventCountry "OMN"]
[SourceTitle "playchess.com"]
[Source "ChessBase"]
[SourceQuality "1"]
[TimeControl "5400+30"]

1. d4 {[%emt 0:00:04]} d5 {[%emt 0:04:16]} 2. Bf4 {[%emt 0:00:16]} c5 {[%emt 0:00:14]} 3. e3 {[%emt 0:02:40]} Nc6 {[%emt 0:00:09]} 4. Nf3 {[%emt 0:06:25]} Nf6 {[%emt 0:00:54]} 5. Nbd2 {[%emt 0:01:24]} cxd4 {[%emt 0:00:47]} 6. exd4 {[%emt 0:00:46]} Qb6 {[%emt 0:00:03]} 7. Nb3 {[%emt 0:00:37]} Bg4 {[%emt 0:00:51]} 8. c3 {[%emt 0:03:31]} Nh5 {[%emt 0:03:56]} 9. Be3 {[%emt 0:02:09]} e6 {[%emt 0:00:25]} 10. h3 {[%emt 0:02:01]} Bxf3 {[%emt 0:00:39]} 11. Qxf3 {[%emt 0:01:38]} Nf6 {[%emt 0:00:04]} 12. Bd3 {[%emt 0:01:00]} Be7 {[%emt 0:03:18]} 13. O-O {[%emt 0:00:37]} O-O {[%emt 0:00:10]} 14. Rab1 {[%emt 0:01:59]} Rfc8 {[%emt 0:02:50]} 15. Rfe1 {[%emt 0:06:35]} Qd8 {[%emt 0:01:40]} 16. Bg5 {[%emt 0:01:47]} b6 {[%emt 0:02:01]} 17. Ba6 {[%emt 0:03:55]} Rc7 {[%emt 0:00:29]} 18. Bf4 {[%emt 0:00:58]} Bd6 {[%emt 0:00:15]} 19. Bxd6 {[%emt 0:00:10]} Qxd6 {[%emt 0:00:04]} 20. Bd3 {[%emt 0:00:25]} Ne7 {[%emt 0:00:15]} 21. Qe2 {[%emt 0:01:48]} Ng6 {[%emt 0:00:26]} 22. g3 {[%emt 0:02:24]} Re7 {[%emt 0:03:55]} 23. Nd2 {[%emt 0:04:20]} Rae8 {[%emt 0:01:03]} 24. Bxg6 {[%emt 0:06:00]} hxg6 {[%emt 0:01:12]} 25. Nf3 {[%emt 0:05:01]} Ne4 {[%emt 0:03:21]} 26. Ne5 {[%emt 0:02:07]} Kh7 {[%emt 0:10:38]} 27. Qg4 {[%emt 0:06:09]} Nf6 {[%emt 0:01:16]} 28. Qh4+ {[%emt 0:01:50]} Kg8 {[%emt 0:00:00]} 29. Qf4 {[%emt 0:00:46]} Nd7 {[%emt 0:01:37]} 30. Nxg6 {[%emt 0:01:33]} Qc6 {[%emt 0:02:11]} 31. Nxe7+ {[%emt 0:00:19]} Rxe7 {[%emt 0:00:01]} 32. Re2 {[%emt 0:01:19]} b5 {[%emt 0:00:30]} 33. Qh4 {[%emt 0:01:31]} Re8 {[%emt 0:00:20]} 34. Qf4 {[%emt 0:00:01]} a6 {[%emt 0:00:18]} 35. h4 {[%emt 0:02:05]} Qc4 {[%emt 0:00:01]} 36. Ree1 {[%emt 0:02:50]} Nf6 {[%emt 0:02:15]} 37. a3 {[%emt 0:00:53]} Ne4 {[%emt 0:00:59]} 38. f3 {[%emt 0:02:48]} Nf6 {[%emt 0:01:25]} 39. g4 {[%emt 0:00:43]} a5 {[%emt 0:01:57]} 40. h5 {[%emt 0:01:28]} Nh7 {[%emt 0:05:12]} 41. g5 {[%emt 0:02:27]} f6 {[%emt 0:01:49]} 42. g6 {[%emt 0:01:26]} Ng5 {[%emt 0:00:14]} 43. Kg2 {[%emt 0:03:11]} e5 {[%emt 0:01:58]} 44. Qe3 {[%emt 0:02:24]} Qc8 {[%emt 0:04:38]} 45. f4 {[%emt 0:03:01]} Ne4 {[%emt 0:01:07]} 46. Qh3 {[%emt 0:03:31]} Qc4 {[%emt 0:05:12]} 47. h6 {[%emt 0:01:52]} gxh6 {[%emt 0:02:55]} 48. Qxh6 {[%emt 0:01:27]} Re7 {[%emt 0:00:01]} 49. f5 {[%emt 0:00:56]} Qd3 {[%emt 0:01:09]} 50. Qe3 {[%emt 0:00:31]} Qc4 {[%emt 0:04:58]} 51. Qe2 {[%emt 0:02:57]} Qc8 {[%emt 0:01:04]} 52. Qh5 {[%emt 0:01:29]} Qf8 {[%emt 0:04:57]} 53. Rh1 {[%emt 0:06:56]} Qg7 {[%emt 0:25:01]} 54. Rh2 {[%emt 0:00:00]} Ng5 {[%emt 0:00:00]} 55. Rbh1 {[%emt 0:00:00]} exd4 {[%emt 0:00:00]} 56. Qh8+ {[%emt 0:00:00]} Qxh8 {[%emt 0:00:00]} 57. Rxh8+ {[%emt 0:00:00]} Kg7 {[%emt 0:00:00]} 58. R1h7+ {[%emt 0:00:00]} Nxh7 {[%emt 0:00:00]} 59. Rxh7+ {[%emt 0:00:00]} Kf8 {[%emt 0:00:00]} 60. Rxe7 {[%emt 0:00:00]} dxc3 {[%emt 0:00:00]} 61. Re2 {[%emt 0:00:00]} d4 {[%emt 0:00:00]} 62. bxc3 {[%emt 0:00:00]} dxc3 {[%emt 0:00:00]} 63. Rc2 {[%emt 0:00:10]} b4 {[%emt 0:00:00]} 64. axb4 {[%emt 0:00:10]} axb4 {[%emt 0:00:00]} 65. Kf3 {[%emt 0:00:18]} 1-0

[Event "Asian Amateur-ch Open 2022"]
[Site "Muscat"]
[Date "2022.10.05"]
[Round "9.27"]
[White "Ghaith Saeed Alnuaimi"]
[Black "kloub.M"]
[Result "1-0"]
[ECO "E11"]
[WhiteElo "1269"]
[BlackElo "1687"]
[Annotator "NA RC COMBH"]
[PlyCount "51"]
[EventDate "2022.09.29"]
[EventType "swiss"]
[EventCountry "OMN"]
[SourceTitle "playchess.com"]
[Source "ChessBase"]
[SourceQuality "1"]
[TimeControl "5400+30"]

1. d4 {[%emt 0:00:02]} d5 {[%emt 0:00:36]} 2. c4 {[%emt 0:00:06]} e6 {[%emt 0:00:07]} 3. Nf3 {[%emt 0:00:02]} Nf6 {[%emt 0:00:19]} 4. g3 {[%emt 0:00:09]} Bb4+ {[%emt 0:00:26]} 5. Bd2 {[%emt 0:01:08]} Be7 {[%emt 0:00:09]} 6. Bg2 {[%emt 0:00:05]} O-O {[%emt 0:00:18]} 7. O-O {[%emt 0:00:06]} c6 {[%emt 0:02:06]} 8. Qc2 {[%emt 0:00:11]} Nbd7 {[%emt 0:02:04]} 9. b3 {[%emt 0:00:31]} Ne4 {[%emt 0:05:09]} 10. Nc3 {[%emt 0:00:55]} Nxd2 {[%emt 0:00:52]} 11. Nxd2 {[%emt 0:00:07]} Nf6 {[%emt 0:01:05]} 12. e3 {[%emt 0:00:26]} c5 {[%emt 0:05:19]} 13. dxc5 {[%emt 0:00:12]} Bxc5 {[%emt 0:20:09]} 14. cxd5 {[%emt 0:01:17]} exd5 {[%emt 0:09:05]} 15. Nxd5 {[%emt 0:00:25]} Nxd5 {[%emt 0:03:36]} 16. Qxc5 {[%emt 0:00:19]} Be6 {[%emt 0:02:05]} 17. Nf3 {[%emt 0:01:17]} Rc8 {[%emt 0:00:57]} 18. Qxa7 {[%emt 0:01:31]} b6 {[%emt 0:01:53]} 19. Nd4 {[%emt 0:08:09]} Rc7 {[%emt 0:05:56]} 20. Nxe6 {[%emt 0:01:42]} fxe6 {[%emt 0:01:24]} 21. Qa6 {[%emt 0:00:28]} Rc2 {[%emt 0:01:45]} 22. Qd3 {[%emt 0:06:51]} Rfxf2 {[%emt 0:12:44]} 23. Rxf2 {[%emt 0:07:00]} Rxf2 {[%emt 0:00:08]} 24. Bxd5 {[%emt 0:00:18]} Rf7 {[%emt 0:07:04]} 25. Bc4 {[%emt 0:04:58]} Qf6 {[%emt 0:17:07]} 26. Rf1 {[%emt 0:00:08]} 1-0

[Event "Asian Amateur-ch Open 2022"]
[Site "Muscat"]
[Date "2022.10.05"]
[Round "9.28"]
[White "Al Hosni, Khalfan"]
[Black "Al Balushi, Said"]
[Result "1-0"]
[ECO "C02"]
[WhiteElo "1680"]
[BlackElo "1495"]
[Annotator "NA RC COMBH"]
[PlyCount "75"]
[EventDate "2022.09.29"]
[EventType "swiss"]
[EventCountry "OMN"]
[SourceTitle "playchess.com"]
[Source "ChessBase"]
[SourceQuality "1"]
[TimeControl "5400+30"]

1. e4 {[%emt 0:00:52]} e6 {[%emt 0:03:07]} 2. d4 {[%emt 0:00:14]} d5 {[%emt 0:00:41]} 3. e5 {[%emt 0:00:03]} c5 {[%emt 0:00:01]} 4. c3 {[%emt 0:00:01]} Nc6 {[%emt 0:00:02]} 5. Nf3 {[%emt 0:00:03]} Bd7 {[%emt 0:00:10]} 6. Bd3 {[%emt 0:00:43]} cxd4 {[%emt 0:00:29]} 7. O-O {[%emt 0:01:23]} dxc3 {[%emt 0:00:03]} 8. Nxc3 {[%emt 0:00:09]} Nge7 {[%emt 0:00:11]} 9. Bg5 {[%emt 0:05:44]} a6 {[%emt 0:00:05]} 10. a3 {[%emt 0:02:38]} h6 {[%emt 0:00:23]} 11. Bh4 {[%emt 0:01:23]} g5 {[%emt 0:01:28]} 12. Bg3 {[%emt 0:00:04]} Bg7 {[%emt 0:09:35]} 13. Re1 {[%emt 0:01:13]} O-O {[%emt 0:01:38]} 14. h4 {[%emt 0:02:12]} g4 {[%emt 0:09:21]} 15. Nh2 {[%emt 0:00:28]} h5 {[%emt 0:00:20]} 16. Bf4 {[%emt 0:07:35]} Ng6 {[%emt 0:06:08]} 17. Bg5 {[%emt 0:01:03]} Qb6 {[%emt 0:04:45]} 18. Na4 {[%emt 0:09:12]} Qa7 {[%emt 0:10:36]} 19. Rc1 {[%emt 0:10:32]} Ncxe5 {[%emt 0:11:44]} 20. Nc5 {[%emt 0:07:29]} Nxd3 {[%emt 0:08:28]} 21. Qxd3 {[%emt 0:00:03]} b6 {[%emt 0:05:19]} 22. Nb3 {[%emt 0:03:16]} Rac8 {[%emt 0:04:20]} 23. Nf1 {[%emt 0:00:55]} Bb5 {[%emt 0:00:46]} 24. Qe3 {[%emt 0:00:44]} Bxf1 {[%emt 0:01:25]} 25. Rxf1 {[%emt 0:00:09]} Bxb2 {[%emt 0:00:53]} 26. Rxc8 {[%emt 0:01:17]} Rxc8 {[%emt 0:00:42]} 27. Nd4 {[%emt 0:00:33]} Bxd4 {[%emt 0:08:24]} 28. Qxd4 {[%emt 0:00:06]} Ne7 {[%emt 0:09:30]} 29. Bf6 {[%emt 0:02:08]} Nf5 {[%emt 0:03:52]} 30. Qf4 {[%emt 0:00:03]} Kf8 {[%emt 0:00:31]} 31. Re1 {[%emt 0:00:59]} Qc7 {[%emt 0:00:26]} 32. Qg5 {[%emt 0:00:08]} Ke8 {[%emt 0:00:30]} 33. Qxf5 {[%emt 0:00:06]} Qc4 {[%emt 0:00:33]} 34. Rxe6+ {[%emt 0:01:46]} Kf8 {[%emt 0:00:32]} 35. Be7+ {[%emt 0:01:34]} Ke8 {[%emt 0:00:23]} 36. Bc5+ {[%emt 0:03:54]} fxe6 {[%emt 0:00:16]} 37. Qxe6+ {[%emt 0:00:05]} Kd8 {[%emt 0:00:48]} 38. Qe7# {[%emt 0:00:07]} 1-0

[Event "Asian Amateur-ch Open 2022"]
[Site "Muscat"]
[Date "2022.10.05"]
[Round "9.33"]
[White "Nadeem Aziz"]
[Black "Alhassan, Meshari"]
[Result "1-0"]
[ECO "A81"]
[WhiteElo "1797"]
[BlackElo "1372"]
[Annotator "NA RC COMBH"]
[PlyCount "37"]
[EventDate "2022.09.29"]
[EventType "swiss"]
[EventCountry "OMN"]
[SourceTitle "playchess.com"]
[Source "ChessBase"]
[SourceQuality "1"]
[TimeControl "5400+30"]

1. d4 {[%emt 0:00:30]} f5 {[%emt 0:22:48]} 2. Nf3 {[%emt 0:00:00]} Nf6 {[%emt 0:00:05]} 3. g3 {[%emt 0:00:00]} e6 {[%emt 0:02:50]} 4. Bg2 {[%emt 0:00:00]} d5 {[%emt 0:00:02]} 5. O-O {[%emt 0:00:00]} Nc6 {[%emt 0:00:21]} 6. Bg5 {[%emt 0:00:36]} Nb8 {[%emt 0:00:30]} 7. c4 {[%emt 0:01:01]} c6 {[%emt 0:00:00]} 8. cxd5 {[%emt 0:03:58]} cxd5 {[%emt 0:01:09]} 9. Nc3 {[%emt 0:00:28]} a6 {[%emt 0:00:27]} 10. Rc1 {[%emt 0:00:02]} Nbd7 {[%emt 0:00:21]} 11. Qa4 {[%emt 0:00:33]} Bd6 {[%emt 0:01:57]} 12. Nb5 {[%emt 0:03:28]} Bb8 {[%emt 0:00:02]} 13. Qa3 {[%emt 0:00:31]} Kf7 {[%emt 0:00:43]} 14. Nd6+ {[%emt 0:00:53]} Bxd6 {[%emt 0:00:28]} 15. Qxd6 {[%emt 1:26:00]} h6 {[%emt 1:06:17]} 16. Bxf6 {[%emt 0:00:30]} Nxf6 {[%emt 0:00:30]} 17. Ne5+ {[%emt 0:00:00]} Ke8 {[%emt 0:00:00]} 18. Qc7 {[%emt 0:00:00]} Bd7 {[%emt 0:00:00]} 19. Qxb7 {[%emt 0:00:00]} 1-0